[Event "Live Chess"]
[Site "Chess.com"]
[Date "2024.06.02"]
[Round "-"]
[White "jellhhggffhjjjjjj"]
[Black "booktrunk"]
[Result "0-1"]
[WhiteElo "479"]
[BlackElo "1509"]
[TimeControl "300"]
[EndTime "2:37:33 PDT"]
[Termination "booktrunk won on time"]

1. g3 {[%clk 0:04:54.2]} 1... e6 {[%clk 0:04:56.9]} 2. Bg2 {[%clk 0:04:53.6]}
2... Nf6 {[%clk 0:04:50.6]} 3. Nf3 {[%clk 0:04:52.6]} 3... h6 {[%clk 0:04:48.9]}
4. O-O {[%clk 0:04:50.5]} 4... Bc5 {[%clk 0:04:46.2]} 5. e3 {[%clk 0:04:47.8]}
5... d6 {[%clk 0:04:37.7]} 6. d4 {[%clk 0:04:45.6]} 6... Bb6 {[%clk 0:04:35.5]}
7. Nc3 {[%clk 0:04:43.5]} 7... O-O {[%clk 0:04:33.1]} 8. Bd2 {[%clk 0:04:41]}
8... Nbd7 {[%clk 0:04:25.4]} 9. Qe2 {[%clk 0:04:38.9]} 9... Re8 {[%clk
0:04:24.3]} 10. Rae1 {[%clk 0:04:37.3]} 10... Nf8 {[%clk 0:04:23]} 11. a3 {[%clk
0:04:33.3]} 11... Bd7 {[%clk 0:04:18.6]} 12. b4 {[%clk 0:04:30.8]} 12... a6
{[%clk 0:04:16.6]} 13. Na4 {[%clk 0:04:24.5]} 13... Bxa4 {[%clk 0:04:13.8]} 14.
c3 {[%clk 0:04:21]} 14... d5 {[%clk 0:04:11.9]} 15. Ne5 {[%clk 0:04:17.9]} 15...
N6d7 {[%clk 0:04:01.8]} 16. Qd3 {[%clk 0:04:15]} 16... Bb5 {[%clk 0:03:55.1]}
17. c4 {[%clk 0:04:00.4]} 17... dxc4 {[%clk 0:03:51.3]} 18. Nxc4 {[%clk
0:03:58.6]} 18... Bxc4 {[%clk 0:03:38.8]} 19. Qxc4 {[%clk 0:03:56.4]} 19... c6
{[%clk 0:03:37.3]} 20. a4 {[%clk 0:03:45.6]} 20... Nf6 {[%clk 0:03:33.9]} 21. a5
{[%clk 0:03:34.7]} 21... Bc7 {[%clk 0:03:32.7]} 22. Qd3 {[%clk 0:03:23.9]} 22...
Ng6 {[%clk 0:03:22]} 23. e4 {[%clk 0:03:19]} 23... e5 {[%clk 0:03:18.2]} 24. Be3
{[%clk 0:03:12.5]} 24... exd4 {[%clk 0:03:15]} 25. Qxd4 {[%clk 0:03:07.3]} 25...
Qxd4 {[%clk 0:03:12.7]} 26. Bxd4 {[%clk 0:03:05.7]} 26... Be5 {[%clk 0:03:10.3]}
27. Bxe5 {[%clk 0:03:00]} 27... Nxe5 {[%clk 0:03:08.7]} 28. f4 {[%clk
0:02:57.7]} 28... Ned7 {[%clk 0:03:01.8]} 29. e5 {[%clk 0:02:55.3]} 29... Nh7
{[%clk 0:02:59]} 30. Re2 {[%clk 0:02:48.9]} 30... Ndf8 {[%clk 0:02:57.7]} 31.
Rfe1 {[%clk 0:02:42.4]} 31... Rad8 {[%clk 0:02:55.3]} 32. h3 {[%clk 0:02:38]}
32... Ne6 {[%clk 0:02:53.3]} 33. Kh2 {[%clk 0:02:34]} 33... Nd4 {[%clk 0:02:51]}
34. Re4 {[%clk 0:02:29.5]} 34... Nc2 {[%clk 0:02:47.4]} 35. R1e2 {[%clk
0:02:17.3]} 35... Nd4 {[%clk 0:02:40.5]} 36. R2e3 {[%clk 0:02:11.7]} 36... Ne6
{[%clk 0:02:36.3]} 37. h4 {[%clk 0:02:01.7]} 37... Rd4 {[%clk 0:02:34.1]} 38.
Bh3 {[%clk 0:01:54.5]} 38... Rxe4 {[%clk 0:02:31.6]} 39. Rxe4 {[%clk 0:01:53.2]}
39... Nc7 {[%clk 0:02:29.1]} 40. Bg2 {[%clk 0:01:41.8]} 40... Rd8 {[%clk
0:02:26]} 41. Kh3 {[%clk 0:01:39]} 41... Kf8 {[%clk 0:02:22.7]} 42. Kg4 {[%clk
0:01:30.5]} 42... Ne6 {[%clk 0:02:20.6]} 43. f5 {[%clk 0:01:17.5]} 43... Nc7
{[%clk 0:02:09.4]} 44. Kf4 {[%clk 0:01:13.1]} 44... Nb5 {[%clk 0:02:02.6]} 45.
Bf1 {[%clk 0:01:05]} 45... Nc3 {[%clk 0:02:00]} 46. Rc4 {[%clk 0:00:55.5]} 46...
Nd5+ {[%clk 0:01:57]} 47. Ke4 {[%clk 0:00:50.2]} 47... Ne7 {[%clk 0:01:48.1]}
48. Rc5 {[%clk 0:00:36.2]} 48... f6 {[%clk 0:01:45.7]} 49. exf6 {[%clk
0:00:34.1]} 49... Nxf6+ {[%clk 0:01:42.7]} 50. Kf4 {[%clk 0:00:30.8]} 50... Rd5
{[%clk 0:01:37]} 51. Rc4 {[%clk 0:00:28.8]} 51... Rxf5+ {[%clk 0:01:33.3]} 52.
Ke3 {[%clk 0:00:21.8]} 52... Rxf1 {[%clk 0:01:31.5]} 53. Ke2 {[%clk 0:00:16.5]}
53... Rg1 {[%clk 0:01:27.7]} 54. Kf3 {[%clk 0:00:14.5]} 54... Rb1 {[%clk
0:01:23.9]} 55. Kf2 {[%clk 0:00:12.5]} 55... Ned5 {[%clk 0:01:22.8]} 56. Rf4
{[%clk 0:00:04.7]} 56... Nxf4 {[%clk 0:01:20.6]} 57. gxf4 {[%clk 0:00:03.9]}
57... Rxb4 {[%clk 0:01:19.2]} 58. Kg3 {[%clk 0:00:03.4]} 58... Rb5 {[%clk
0:01:16.9]} 59. Kf3 {[%clk 0:00:01.9]} 59... Rxa5 {[%clk 0:01:15.8]} 60. Ke3
{[%clk 0:00:01.2]} 60... Rb5 {[%clk 0:01:14.7]} 61. Kd3 {[%clk 0:00:00.9]} 61...
a5 {[%clk 0:01:14]} 62. Kc3 {[%clk 0:00:00.6]} 62... a4 {[%clk 0:01:13.4]} 0-1

[Event "Live Chess"]
[Site "Chess.com"]
[Date "2024.06.02"]
[Round "-"]
[White "bill77678"]
[Black "AlanBstard10"]
[Result "1-0"]
[WhiteElo "1846"]
[BlackElo "1233"]
[TimeControl "300"]
[EndTime "2:37:44 PDT"]
[Termination "bill77678 won by resignation"]

1. e4 {[%clk 0:04:57.7]} 1... d5 {[%clk 0:04:57]} 2. exd5 {[%clk 0:04:56.4]}
2... Nf6 {[%clk 0:04:56.7]} 3. d4 {[%clk 0:04:55.1]} 3... Qxd5 {[%clk
0:04:52.9]} 4. c4 {[%clk 0:04:49.5]} 4... Qe4+ {[%clk 0:04:47.7]} 5. Ne2 {[%clk
0:04:35.5]} 5... e6 {[%clk 0:04:46.4]} 6. Nc3 {[%clk 0:04:34.2]} 6... Bb4 {[%clk
0:04:43.9]} 7. Qa4+ {[%clk 0:03:58.7]} 7... Nc6 {[%clk 0:04:41.4]} 8. Qxb4
{[%clk 0:03:57.6]} 8... Nxb4 {[%clk 0:04:40.5]} 9. Nxe4 {[%clk 0:03:56.8]} 9...
Nxe4 {[%clk 0:04:38.8]} 10. Rb1 {[%clk 0:03:43.3]} 10... Nxa2 {[%clk 0:04:27.2]}
11. Be3 {[%clk 0:03:39]} 11... Nb4 {[%clk 0:04:14.4]} 12. Nc3 {[%clk 0:03:25.6]}
12... Nxc3 {[%clk 0:03:55]} 13. bxc3 {[%clk 0:03:25.5]} 13... Nc2+ {[%clk
0:03:50.9]} 14. Kd2 {[%clk 0:03:24.3]} 14... Nxe3 {[%clk 0:03:49.9]} 15. Kxe3
{[%clk 0:03:23.2]} 15... O-O {[%clk 0:03:48.9]} 16. Bd3 {[%clk 0:03:21.9]} 16...
Rb8 {[%clk 0:03:43.8]} 17. c5 {[%clk 0:03:16.4]} 17... c6 {[%clk 0:03:42.4]} 18.
Rb2 {[%clk 0:03:12.1]} 18... Bd7 {[%clk 0:03:41.2]} 19. Rhb1 {[%clk 0:03:10.5]}
19... Bc8 {[%clk 0:03:38.4]} 20. Be4 {[%clk 0:03:07.6]} 20... b6 {[%clk
0:03:06.3]} 21. cxb6 {[%clk 0:03:06]} 21... axb6 {[%clk 0:03:04.4]} 22. Bxc6
{[%clk 0:03:02.4]} 22... f5 {[%clk 0:02:28.6]} 23. Rxb6 {[%clk 0:02:58.3]} 23...
Rxb6 {[%clk 0:02:26.6]} 24. Rxb6 {[%clk 0:02:58.2]} 24... g6 {[%clk 0:02:19.4]}
25. Rb8 {[%clk 0:02:46.3]} 25... Kg7 {[%clk 0:02:15.1]} 26. Bb7 {[%clk
0:02:40.4]} 26... Bxb7 {[%clk 0:02:08.2]} 27. Rxb7+ {[%clk 0:02:40.3]} 27... Kh6
{[%clk 0:02:04.3]} 28. c4 {[%clk 0:02:37.2]} 28... f4+ {[%clk 0:02:00.8]} 29.
Ke4 {[%clk 0:02:33]} 29... g5 {[%clk 0:01:59.1]} 30. Rb6 {[%clk 0:02:27.3]}
30... Re8 {[%clk 0:01:56.7]} 31. Ke5 {[%clk 0:02:25.5]} 31... g4 {[%clk
0:01:50.2]} 32. Rxe6+ {[%clk 0:02:22.6]} 32... Rxe6+ {[%clk 0:01:48.5]} 33. Kxe6
{[%clk 0:02:22.5]} 33... Kg5 {[%clk 0:01:46.9]} 34. g3 {[%clk 0:02:15.2]} 34...
fxg3 {[%clk 0:01:42.1]} 35. fxg3 {[%clk 0:02:14.1]} 35... h5 {[%clk 0:01:40.2]}
36. c5 {[%clk 0:02:12.2]} 36... h4 {[%clk 0:01:39.8]} 37. c6 {[%clk 0:02:11.3]}
37... hxg3 {[%clk 0:01:38.4]} 38. hxg3 {[%clk 0:02:10.5]} 1-0

[Event "Live Chess"]
[Site "Chess.com"]
[Date "2024.06.02"]
[Round "-"]
[White "AlexanderMatlak"]
[Black "ZatixMajor"]
[Result "1-0"]
[WhiteElo "2411"]
[BlackElo "2027"]
[TimeControl "300"]
[EndTime "2:37:53 PDT"]
[Termination "AlexanderMatlak won by resignation"]

1. e4 {[%clk 0:04:54.8]} 1... c5 {[%clk 0:04:58.9]} 2. Be2 {[%clk 0:04:53.6]}
2... Nc6 {[%clk 0:04:57.5]} 3. f4 {[%clk 0:04:52.7]} 3... d5 {[%clk 0:04:54.8]}
4. d3 {[%clk 0:04:50.8]} 4... dxe4 {[%clk 0:04:53.1]} 5. dxe4 {[%clk 0:04:50.7]}
5... Qxd1+ {[%clk 0:04:51.3]} 6. Bxd1 {[%clk 0:04:50.6]} 6... g6 {[%clk
0:04:50.1]} 7. c3 {[%clk 0:04:48.8]} 7... Bg7 {[%clk 0:04:49.3]} 8. Nf3 {[%clk
0:04:48]} 8... e5 {[%clk 0:04:47.4]} 9. O-O {[%clk 0:04:46.6]} 9... Nge7 {[%clk
0:04:45.2]} 10. Na3 {[%clk 0:04:41.9]} 10... O-O {[%clk 0:04:40.1]} 11. Nc4
{[%clk 0:04:37.8]} 11... f6 {[%clk 0:04:15.2]} 12. Nd6 {[%clk 0:04:32.5]} 12...
h5 {[%clk 0:03:27.6]} 13. Bb3+ {[%clk 0:04:24.6]} 13... Kh7 {[%clk 0:03:26.2]}
14. Be3 {[%clk 0:04:03.3]} 14... b6 {[%clk 0:03:22.1]} 15. fxe5 {[%clk
0:03:56.7]} 15... fxe5 {[%clk 0:03:17]} 16. Ng5+ {[%clk 0:03:54.4]} 16... Kh8
{[%clk 0:03:01.7]} 17. Ndf7+ {[%clk 0:03:51.4]} 17... Rxf7 {[%clk 0:03:00.6]}
18. Nxf7+ {[%clk 0:03:50.3]} 18... Kh7 {[%clk 0:03:00.1]} 19. Ng5+ {[%clk
0:03:47.9]} 19... Kh8 {[%clk 0:02:59]} 20. Rad1 {[%clk 0:03:39.4]} 20... Bg4
{[%clk 0:02:54.3]} 21. Rd2 {[%clk 0:03:34.6]} 21... Na5 {[%clk 0:02:48.8]} 22.
h3 {[%clk 0:03:09.6]} 22... Nxb3 {[%clk 0:02:41.4]} 23. axb3 {[%clk 0:03:09.5]}
23... Bc8 {[%clk 0:02:26.4]} 24. Rd8+ {[%clk 0:03:07.6]} 24... Ng8 {[%clk
0:02:23.5]} 25. Rf7 {[%clk 0:02:55.2]} 25... Bb7 {[%clk 0:02:16.6]} 26. Rxa8
{[%clk 0:02:53.5]} 26... Bxa8 {[%clk 0:02:16.5]} 27. Rxa7 {[%clk 0:02:52.5]}
27... Bc6 {[%clk 0:02:12.7]} 28. Nf7+ {[%clk 0:02:49.4]} 28... Kh7 {[%clk
0:02:10.9]} 29. Nxe5 {[%clk 0:02:46.1]} 29... Bxe4 {[%clk 0:02:08.1]} 30. Nd7
{[%clk 0:02:44]} 30... Bc2 {[%clk 0:02:03.9]} 31. Nxb6 {[%clk 0:02:41]} 31...
Bxb3 {[%clk 0:02:02.4]} 32. Bxc5 {[%clk 0:02:40.3]} 32... Nf6 {[%clk 0:01:58.3]}
33. Bd4 {[%clk 0:02:39.2]} 1-0

[Event "Live Chess"]
[Site "Chess.com"]
[Date "2024.06.02"]
[Round "-"]
[White "ameetghasi100"]
[Black "Isambard_Thomas"]
[Result "1-0"]
[WhiteElo "2793"]
[BlackElo "2156"]
[TimeControl "300"]
[EndTime "2:38:07 PDT"]
[Termination "ameetghasi100 won by checkmate"]

1. c4 {[%clk 0:04:59.1]} 1... Nf6 {[%clk 0:04:58.3]} 2. Nf3 {[%clk 0:04:58.2]}
2... c5 {[%clk 0:04:56.3]} 3. Nc3 {[%clk 0:04:58.1]} 3... Nc6 {[%clk 0:04:55.8]}
4. g3 {[%clk 0:04:57.4]} 4... d6 {[%clk 0:04:55.2]} 5. Bg2 {[%clk 0:04:56.9]}
5... a6 {[%clk 0:04:54.7]} 6. O-O {[%clk 0:04:56.8]} 6... e5 {[%clk 0:04:52.8]}
7. d4 {[%clk 0:04:56.7]} 7... exd4 {[%clk 0:04:52]} 8. Nd5 {[%clk 0:04:56.4]}
8... Nxd5 {[%clk 0:04:47.4]} 9. cxd5 {[%clk 0:04:56.3]} 9... Ne7 {[%clk
0:04:40.7]} 10. e3 {[%clk 0:04:56.2]} 10... dxe3 {[%clk 0:04:24.3]} 11. Bxe3
{[%clk 0:04:53.9]} 11... g6 {[%clk 0:04:23.4]} 12. Re1 {[%clk 0:04:50.4]} 12...
Bg7 {[%clk 0:04:21.6]} 13. Bxc5 {[%clk 0:04:47.2]} 13... O-O {[%clk 0:04:12.2]}
14. Bd4 {[%clk 0:04:44.9]} 14... Nf5 {[%clk 0:03:54.3]} 15. Bxg7 {[%clk
0:04:43]} 15... Kxg7 {[%clk 0:03:53.9]} 16. g4 {[%clk 0:04:41.6]} 16... Ne7
{[%clk 0:03:50.3]} 17. Qd4+ {[%clk 0:04:40.7]} 17... Kg8 {[%clk 0:03:49]} 18.
Re2 {[%clk 0:04:39.4]} 18... b5 {[%clk 0:03:20.6]} 19. Rae1 {[%clk 0:04:36.8]}
19... Nxd5 {[%clk 0:03:08.5]} 20. Qxd5 {[%clk 0:04:35.1]} 20... Bxg4 {[%clk
0:03:07.6]} 21. h3 {[%clk 0:04:31.2]} 21... Be6 {[%clk 0:03:04.1]} 22. Rxe6
{[%clk 0:04:27.6]} 22... fxe6 {[%clk 0:03:03.4]} 23. Rxe6 {[%clk 0:04:24.7]}
23... Kh8 {[%clk 0:02:49.5]} 24. Qd4+ {[%clk 0:04:22.7]} 24... Kg8 {[%clk
0:02:47.9]} 25. Nh2 {[%clk 0:04:19.1]} 25... Rc8 {[%clk 0:02:44.9]} 26. Ng4
{[%clk 0:04:17.6]} 26... Rc1+ {[%clk 0:02:38.6]} 27. Kh2 {[%clk 0:04:16.7]}
27... Rc4 {[%clk 0:02:36.3]} 28. Nh6# {[%clk 0:04:12.6]} 1-0

[Event "Live Chess"]
[Site "Chess.com"]
[Date "2024.06.02"]
[Round "-"]
[White "CheckThis4"]
[Black "vincents82"]
[Result "1-0"]
[WhiteElo "2696"]
[BlackElo "1985"]
[TimeControl "300"]
[EndTime "2:38:25 PDT"]
[Termination "CheckThis4 won by resignation"]

1. d4 {[%clk 0:04:58.2]} 1... d5 {[%clk 0:04:59.1]} 2. c4 {[%clk 0:04:54.7]}
2... c6 {[%clk 0:04:53.9]} 3. Nc3 {[%clk 0:04:53.6]} 3... Nf6 {[%clk 0:04:52.8]}
4. Nf3 {[%clk 0:04:51.8]} 4... dxc4 {[%clk 0:04:51.5]} 5. e4 {[%clk 0:04:49.1]}
5... b5 {[%clk 0:04:49.2]} 6. Be2 {[%clk 0:04:48]} 6... e6 {[%clk 0:04:47.8]} 7.
O-O {[%clk 0:04:43.7]} 7... Be7 {[%clk 0:04:46.8]} 8. a4 {[%clk 0:04:41]} 8...
b4 {[%clk 0:04:45.7]} 9. e5 {[%clk 0:04:40.3]} 9... bxc3 {[%clk 0:04:42.6]} 10.
exf6 {[%clk 0:04:39.4]} 10... Bxf6 {[%clk 0:04:30.3]} 11. bxc3 {[%clk
0:04:37.9]} 11... Nd7 {[%clk 0:04:28.2]} 12. Ba3 {[%clk 0:04:32]} 12... Be7
{[%clk 0:04:26.6]} 13. Bxe7 {[%clk 0:04:24.3]} 13... Qxe7 {[%clk 0:04:25.6]} 14.
Bxc4 {[%clk 0:04:23.9]} 14... Nb6 {[%clk 0:04:24.7]} 15. Bd3 {[%clk 0:04:20.3]}
15... O-O {[%clk 0:04:23.6]} 16. Re1 {[%clk 0:04:15.2]} 16... c5 {[%clk
0:04:21.5]} 17. a5 {[%clk 0:04:12]} 17... Nd5 {[%clk 0:04:17.1]} 18. c4 {[%clk
0:04:10.6]} 18... Nf4 {[%clk 0:04:12.9]} 19. Be4 {[%clk 0:04:08.7]} 19... Rb8
{[%clk 0:04:11]} 20. g3 {[%clk 0:04:02.2]} 20... Ng6 {[%clk 0:04:07.9]} 21. d5
{[%clk 0:03:59]} 21... Qf6 {[%clk 0:03:59.2]} 22. Ra3 {[%clk 0:03:44.4]} 22...
Rb2 {[%clk 0:03:52.8]} 23. d6 {[%clk 0:03:29.5]} 23... Ba6 {[%clk 0:03:30.6]}
24. d7 {[%clk 0:03:07.3]} 24... Bxc4 {[%clk 0:03:27.7]} 25. h4 {[%clk
0:02:17.6]} 25... Kh8 {[%clk 0:03:05.5]} 26. Bxg6 {[%clk 0:01:51.6]} 26... fxg6
{[%clk 0:03:01.4]} 27. Qd6 {[%clk 0:01:30.7]} 27... Bd5 {[%clk 0:02:51.5]} 28.
Rf1 {[%clk 0:01:25.4]} 28... Rb3 {[%clk 0:02:01.2]} 29. Rxb3 {[%clk 0:01:18.1]}
29... Bxb3 {[%clk 0:02:00.1]} 30. Ne5 {[%clk 0:01:09.8]} 30... Bd5 {[%clk
0:01:51.4]} 31. Qxf8+ {[%clk 0:01:01.9]} 31... Qxf8 {[%clk 0:01:50]} 32. d8=Q
{[%clk 0:01:01.5]} 32... Qxd8 {[%clk 0:01:49.3]} 33. Nf7+ {[%clk 0:01:01]} 33...
Kg8 {[%clk 0:01:48.8]} 34. Nxd8 {[%clk 0:01:00.9]} 1-0

[Event "Live Chess"]
[Site "Chess.com"]
[Date "2024.06.02"]
[Round "-"]
[White "juniortay"]
[Black "Duke_of_Bebington"]
[Result "1-0"]
[WhiteElo "2371"]
[BlackElo "1637"]
[TimeControl "300"]
[EndTime "2:39:03 PDT"]
[Termination "juniortay won by resignation"]

1. e4 {[%clk 0:04:54.8]} 1... e5 {[%clk 0:04:58.4]} 2. Nc3 {[%clk 0:04:53.6]}
2... Nc6 {[%clk 0:04:57.2]} 3. Bc4 {[%clk 0:04:51.7]} 3... Nf6 {[%clk 0:04:56]}
4. d3 {[%clk 0:04:50.6]} 4... Bc5 {[%clk 0:04:53.7]} 5. f3 {[%clk 0:04:49.8]}
5... O-O {[%clk 0:04:51.5]} 6. f4 {[%clk 0:04:47.7]} 6... exf4 {[%clk 0:04:47]}
7. Bxf4 {[%clk 0:04:41.5]} 7... d6 {[%clk 0:04:45.7]} 8. Nf3 {[%clk 0:04:38.4]}
8... Na5 {[%clk 0:04:36.8]} 9. Bb3 {[%clk 0:04:34.9]} 9... Nxb3 {[%clk
0:04:34.4]} 10. axb3 {[%clk 0:04:34.8]} 10... Bg4 {[%clk 0:04:30.6]} 11. Qd2
{[%clk 0:04:33.4]} 11... Nh5 {[%clk 0:04:20.8]} 12. O-O-O {[%clk 0:04:11.9]}
12... Bxf3 {[%clk 0:04:08.6]} 13. gxf3 {[%clk 0:03:55.4]} 13... Nxf4 {[%clk
0:04:07.4]} 14. Qxf4 {[%clk 0:03:54]} 14... Qf6 {[%clk 0:04:05.7]} 15. Qxf6
{[%clk 0:03:51.4]} 15... gxf6 {[%clk 0:04:04.2]} 16. d4 {[%clk 0:03:47.5]} 16...
Bb4 {[%clk 0:04:01]} 17. Nd5 {[%clk 0:03:46.4]} 17... Ba5 {[%clk 0:03:59.4]} 18.
Nxf6+ {[%clk 0:03:43.9]} 18... Kh8 {[%clk 0:03:58.8]} 19. Rhg1 {[%clk 0:03:40]}
19... c6 {[%clk 0:03:56.5]} 20. Rg4 {[%clk 0:03:37.6]} 20... Bd8 {[%clk
0:03:55.4]} 21. Nh5 {[%clk 0:03:25.4]} 21... f5 {[%clk 0:03:47.5]} 22. Rg2
{[%clk 0:03:20.1]} 22... fxe4 {[%clk 0:03:44.5]} 23. fxe4 {[%clk 0:03:17.7]}
23... Bf6 {[%clk 0:03:38.9]} 24. Nxf6 {[%clk 0:03:08.3]} 24... Rxf6 {[%clk
0:03:38.8]} 25. c3 {[%clk 0:03:02.9]} 25... Re8 {[%clk 0:03:33.9]} 26. Re2
{[%clk 0:02:59.8]} 26... Rf4 {[%clk 0:03:28.6]} 27. Rde1 {[%clk 0:02:58.2]}
27... Rf7 {[%clk 0:03:24.2]} 28. Kd2 {[%clk 0:02:57.2]} 28... Rfe7 {[%clk
0:03:23.3]} 29. e5 {[%clk 0:02:54.7]} 29... dxe5 {[%clk 0:03:21.8]} 30. Rxe5
{[%clk 0:02:53.9]} 30... Kg7 {[%clk 0:03:21.5]} 31. Rxe7+ {[%clk 0:02:52.3]} 1-0

[Event "Live Chess"]
[Site "Chess.com"]
[Date "2024.06.02"]
[Round "-"]
[White "Crowded_House"]
[Black "WorcesterYork"]
[Result "0-1"]
[WhiteElo "1673"]
[BlackElo "2485"]
[TimeControl "300"]
[EndTime "2:39:19 PDT"]
[Termination "WorcesterYork won by resignation"]

1. d4 {[%clk 0:04:57.2]} 1... c5 {[%clk 0:04:59.9]} 2. c3 {[%clk 0:04:54.6]}
2... e6 {[%clk 0:04:58.4]} 3. Nf3 {[%clk 0:04:50.9]} 3... Nf6 {[%clk 0:04:56.2]}
4. e3 {[%clk 0:04:49.4]} 4... b6 {[%clk 0:04:55]} 5. Bd3 {[%clk 0:04:48.5]} 5...
Bb7 {[%clk 0:04:54.2]} 6. Nbd2 {[%clk 0:04:46]} 6... g5 {[%clk 0:04:51.2]} 7.
O-O {[%clk 0:04:43.9]} 7... g4 {[%clk 0:04:50.5]} 8. Ne5 {[%clk 0:04:30]} 8...
h5 {[%clk 0:04:49.5]} 9. Qc2 {[%clk 0:04:15.9]} 9... d6 {[%clk 0:04:47.6]} 10.
Nec4 {[%clk 0:04:14]} 10... Nbd7 {[%clk 0:04:44.1]} 11. Ne4 {[%clk 0:04:05.9]}
11... Nxe4 {[%clk 0:04:41]} 12. Bxe4 {[%clk 0:04:02.1]} 12... Bxe4 {[%clk
0:04:36.1]} 13. Nxd6+ {[%clk 0:03:51]} 13... Bxd6 {[%clk 0:04:34.4]} 14. Qxe4
{[%clk 0:03:49.8]} 14... Nf6 {[%clk 0:04:31.4]} 15. Qc6+ {[%clk 0:03:46.6]}
15... Ke7 {[%clk 0:04:30.7]} 16. dxc5 {[%clk 0:03:34.8]} 16... bxc5 {[%clk
0:04:28.6]} 17. Qb7+ {[%clk 0:03:26.2]} 17... Qc7 {[%clk 0:04:27.3]} 18. Qb3
{[%clk 0:03:20.5]} 18... Rab8 {[%clk 0:04:25.4]} 19. Qc2 {[%clk 0:03:16.1]}
19... Bxh2+ {[%clk 0:04:24.4]} 20. Kh1 {[%clk 0:03:15.3]} 20... h4 {[%clk
0:04:23.4]} 21. Rd1 {[%clk 0:03:04.9]} 21... Be5 {[%clk 0:04:14.6]} 22. b3
{[%clk 0:02:47.7]} 22... Qc6 {[%clk 0:04:13.4]} 23. Bb2 {[%clk 0:02:30.5]} 23...
h3 {[%clk 0:04:12.5]} 24. f3 {[%clk 0:02:16.3]} 24... gxf3 {[%clk 0:04:10.1]}
25. Kg1 {[%clk 0:02:04]} 25... hxg2 {[%clk 0:04:08.5]} 26. Kf2 {[%clk
0:02:02.5]} 26... Ng4+ {[%clk 0:04:06.3]} 0-1

[Event "Live Chess"]
[Site "Chess.com"]
[Date "2024.06.02"]
[Round "-"]
[White "raimundklein"]
[Black "slava_ukr"]
[Result "0-1"]
[WhiteElo "1570"]
[BlackElo "2419"]
[TimeControl "300"]
[EndTime "2:39:23 PDT"]
[Termination "slava_ukr won by resignation"]

1. e4 {[%clk 0:04:58.3]} 1... d5 {[%clk 0:04:56.6]} 2. exd5 {[%clk 0:04:57]}
2... Qxd5 {[%clk 0:04:55.6]} 3. Nc3 {[%clk 0:04:56.1]} 3... Qd6 {[%clk
0:04:54.6]} 4. d4 {[%clk 0:04:54.2]} 4... c6 {[%clk 0:04:53.9]} 5. h3 {[%clk
0:04:52.8]} 5... Nf6 {[%clk 0:04:53.5]} 6. Nf3 {[%clk 0:04:49.5]} 6... Bf5
{[%clk 0:04:52.5]} 7. Be2 {[%clk 0:04:44.3]} 7... e6 {[%clk 0:04:51.6]} 8. O-O
{[%clk 0:04:42.8]} 8... Nbd7 {[%clk 0:04:51]} 9. Re1 {[%clk 0:04:34.8]} 9... Be7
{[%clk 0:04:50.1]} 10. Bg5 {[%clk 0:04:31.6]} 10... O-O {[%clk 0:04:49.1]} 11.
Bf1 {[%clk 0:04:23.8]} 11... Rad8 {[%clk 0:04:47.7]} 12. Qe2 {[%clk 0:04:04.3]}
12... h6 {[%clk 0:04:45.7]} 13. Bh4 {[%clk 0:04:02.1]} 13... a5 {[%clk
0:04:42.9]} 14. Rad1 {[%clk 0:03:53.9]} 14... Rfe8 {[%clk 0:04:37.7]} 15. Ne5
{[%clk 0:03:50.3]} 15... Qb4 {[%clk 0:04:29.3]} 16. g4 {[%clk 0:03:21]} 16...
Bh7 {[%clk 0:04:25.7]} 17. Nxd7 {[%clk 0:02:21]} 17... Rxd7 {[%clk 0:04:14.9]}
0-1

[Event "Live Chess"]
[Site "Chess.com"]
[Date "2024.06.02"]
[Round "-"]
[White "NeilDruggan73"]
[Black "Frankie_Badacsonyi"]
[Result "0-1"]
[WhiteElo "1695"]
[BlackElo "2408"]
[TimeControl "300"]
[EndTime "2:39:34 PDT"]
[Termination "Frankie_Badacsonyi won on time"]

1. d4 {[%clk 0:04:55.6]} 1... d5 {[%clk 0:04:57.8]} 2. Bg5 {[%clk 0:04:51]} 2...
h6 {[%clk 0:04:51.8]} 3. Bh4 {[%clk 0:04:49.3]} 3... c6 {[%clk 0:04:51.1]} 4.
Nd2 {[%clk 0:04:39.8]} 4... Bf5 {[%clk 0:04:42.2]} 5. Ngf3 {[%clk 0:04:29.4]}
5... Nf6 {[%clk 0:04:40.8]} 6. Bxf6 {[%clk 0:04:26.1]} 6... exf6 {[%clk
0:04:38.8]} 7. e3 {[%clk 0:04:21.9]} 7... Bd6 {[%clk 0:04:37.6]} 8. Nb3 {[%clk
0:04:17.5]} 8... Nd7 {[%clk 0:04:26.3]} 9. Rc1 {[%clk 0:04:02.9]} 9... O-O
{[%clk 0:04:15.1]} 10. Bd3 {[%clk 0:03:34.3]} 10... Bxd3 {[%clk 0:04:11.6]} 11.
Qxd3 {[%clk 0:03:30.9]} 11... g6 {[%clk 0:04:09.6]} 12. O-O {[%clk 0:03:21.6]}
12... f5 {[%clk 0:04:08.3]} 13. c4 {[%clk 0:03:14.3]} 13... Nf6 {[%clk
0:04:03.4]} 14. c5 {[%clk 0:03:10.5]} 14... Bc7 {[%clk 0:04:02]} 15. Nbd2 {[%clk
0:03:07.5]} 15... Ne4 {[%clk 0:04:00.2]} 16. Ne1 {[%clk 0:03:00.2]} 16... g5
{[%clk 0:03:52]} 17. f3 {[%clk 0:02:52.1]} 17... Nxd2 {[%clk 0:03:49]} 18. Qxd2
{[%clk 0:02:47.9]} 18... Qe7 {[%clk 0:03:48.9]} 19. Nc2 {[%clk 0:02:43.1]} 19...
f4 {[%clk 0:03:42.7]} 20. Rce1 {[%clk 0:02:29.4]} 20... fxe3 {[%clk 0:03:39.3]}
21. Nxe3 {[%clk 0:02:24.2]} 21... Bf4 {[%clk 0:03:00.4]} 22. Nf5 {[%clk
0:02:12.7]} 22... Qf6 {[%clk 0:02:53.8]} 23. Ne7+ {[%clk 0:02:10.5]} 23... Kh8
{[%clk 0:02:47.1]} 24. Qd3 {[%clk 0:02:09]} 24... Rfe8 {[%clk 0:02:44]} 25. Nf5
{[%clk 0:01:44.5]} 25... h5 {[%clk 0:02:39.4]} 26. g3 {[%clk 0:01:29.6]} 26...
Bc7 {[%clk 0:02:38.3]} 27. g4 {[%clk 0:00:59.2]} 27... h4 {[%clk 0:02:36.9]} 28.
Rxe8+ {[%clk 0:00:50.9]} 28... Rxe8 {[%clk 0:02:35]} 29. Kg2 {[%clk 0:00:49.8]}
29... Bf4 {[%clk 0:02:29]} 30. Rf2 {[%clk 0:00:47.4]} 30... Qe6 {[%clk
0:02:25.6]} 31. h3 {[%clk 0:00:19.7]} 31... b6 {[%clk 0:02:13.3]} 32. b4 {[%clk
0:00:17.4]} 32... b5 {[%clk 0:02:12.3]} 33. a3 {[%clk 0:00:16.2]} 33... a6
{[%clk 0:02:11.3]} 34. Kf1 {[%clk 0:00:13.3]} 34... Qe1+ {[%clk 0:02:08.9]} 35.
Kg2 {[%clk 0:00:11.4]} 35... f6 {[%clk 0:02:04]} 36. Nd6 {[%clk 0:00:07.1]}
36... Bxd6 {[%clk 0:01:58.1]} 37. cxd6 {[%clk 0:00:04.7]} 37... Qe6 {[%clk
0:01:57.5]} 38. Qg6 {[%clk 0:00:03.3]} 38... Qd7 {[%clk 0:01:47]} 39. Qxf6+
{[%clk 0:00:01.2]} 39... Qg7 {[%clk 0:01:45.6]} 0-1